[Event "67th Mexican-ch Open 2022"]
[Site "Chihuahua"]
[Date "2022.04.16"]
[Round "7.24"]
[White "Hernandez Jimenez, Alexander Andres"]
[Black "Arizpe, Frank"]
[Result "1-0"]
[ECO "B22"]
[WhiteElo "2167"]
[BlackElo "1274"]
[Annotator "TA"]
[PlyCount "95"]
[EventDate "2022.04.12"]
[EventType "swiss"]
[EventCountry "MEX"]
[SourceTitle "playchess.com"]
[Source "ChessBase"]
[SourceQuality "1"]
[TimeControl "5400+30"]

{[%evp 24,95,0,0,-8,-6,0,-8,-1,0,0,-2,0,-10,0,0,0,0,0,0,5,5,6,0,0,0,0,0,16,0,18,0,29,0,13,0,0,0,0,0,84,94,115,124,117,119,218,225,221,222,292,292,291,284,300,298,947,791,3881,1541,5085,5075,3083,2615,2497,2482,29969,29966,29966,29959,29976,29975,6195,2467]} 1. e4 {[%emt 0:04:49]} c5 {[%emt 0:00:14]} 2. Nf3 {[%emt 0:00:44]} Nc6 {[%emt 0:00:02]} 3. c3 {[%emt 0:03:25]} d5 {[%emt 0:01:37]} 4. exd5 {[%emt 0:00:09]} Qxd5 {[%emt 0:00:01]} 5. d4 {[%emt 0:00:22]} Bg4 {[%emt 0:00:14]} 6. Be2 {[%emt 0:00:02]} Nf6 {[%emt 0:03:02]} 7. O-O {[%emt 0:14:47]} e6 {[%emt 0:05:03]} 8. Na3 {[%emt 0:05:17]} cxd4 {[%emt 0:07:02]} 9. Nb5 {[%emt 0:00:10]} Rc8 {[%emt 0:00:22]} 10. Nbxd4 {[%emt 0:02:07]} Nxd4 {[%emt 0:03:23]} 11. Nxd4 {[%emt 0:00:30]} Bxe2 {[%emt 0:00:24]} 12. Qxe2 {[%emt 0:00:09]} Be7 {[%emt 0:00:33]} 13. Be3 {[%emt 0:02:01]} O-O {[%emt 0:00:31] B22: Sicilian: 2 c3.} 14. Rfd1 {[%emt 0:00:12]} a6 {[%emt 0:06:29] Inhibits Nb5.} 15. Nf3 {[%emt 0:15:04]} Qc6 {[%emt 0:04:57] The position is equal.} 16. Bg5 {[%emt 0:03:23]} Rfd8 {[%emt 0:02:58] [#]} 17. Ne5 $146 {[%emt 0:05:03]} ({Predecessor:} 17. Rxd8+ Rxd8 18. Rd1 h6 19. Rxd8+ Bxd8 20. Qd3 Be7 21. Bxf6 Bxf6 22. g3 Qa4 23. a3 Qb3 24. Qd2 {0-1 (90) Gorsek,G (2123)-Mazi,L (2355) Sentjur 2013}) 17... Qc7 {[%emt 0:00:33]} 18. Bh4 {[%emt 0:03:21]} Nd5 {[%emt 0:08:19]} 19. Bg3 {[%emt 0:01:54][%cal Oe5f7] [#] And now Nxf7! would win.} Qb6 {[%emt 0:03:49]} 20. c4 {[%emt 0:00:37]} Nf6 {[%emt 0:01:09]} 21. b3 {[%emt 0:01:51]} Rxd1+ {[%emt 0:05:03]} 22. Rxd1 {[%emt 0:00:11]} Rd8 {[%emt 0:00:06]} 23. h3 {[%emt 0:03:20]} h6 {[%emt 0:04:07]} 24. Rd3 {[%emt 0:03:32]} Rxd3 {[%emt 0:05:09]} 25. Qxd3 {[%emt 0:00:03]} Qd8 {[%emt 0:02:35]} 26. Qf3 {[%emt 0:01:30]} Qc8 {[%emt 0:07:28]} 27. Qd3 {[%emt 0:08:04]} Qd8 {[%emt 0:03:16]} 28. Qf3 {[%emt 0:00:16]} Qc8 {[%emt 0:00:09]} 29. Kf1 {[%emt 0:00:02]} b5 {[%emt 0:02:42]} 30. Qd3 {[%emt 0:01:55]} bxc4 {[%emt 0:05:49]} 31. Qxc4 {[%emt 0:00:51]} Qb7 {[%emt 0:01:38] [#]} (31... Qd8 $11 {keeps the balance.} 32. Nd3 Qa5) 32. Qc6 $1 $16 {[%emt 0:01:50] Black is on the road to losing.} Qb5+ {[%emt 0:00:14]} 33. Qxb5 {[%emt 0:00:12] &Bianco is more active.} axb5 {[%emt 0:00:01][%mdl 4096] Endgame KBN-KBN} 34. Nc6 {[%emt 0:01:58]} Ba3 {[%emt 0:04:41]} (34... Kf8 $16) 35. Nd4 $18 {[%emt 0:02:05]} b4 {[%emt 0:01:47]} 36. Nc2 {[%emt 0:01:10]} Nd5 {[%emt 0:00:27]} 37. Nxa3 {[%emt 0:00:16]} bxa3 {[%emt 0:00:02] KB-KN} 38. Bd6 {[%emt 0:00:10]} Nc3 {[%emt 0:00:31]} 39. Ke1 {[%emt 0:06:18]} ({Resist} 39. Bxa3 $6 Nxa2 40. Ke2 Nc3+ 41. Kd3 Nd5 $18) 39... Nxa2 $2 {[%emt 0:02:22]} (39... f5 40. Bxa3 Kf7) 40. Kd2 {[%emt 0:01:27]} e5 {[%emt 0:03:52]} 41. Bxa3 {[%emt 0:00:10]} (41. Kc2 $142 f5 42. Bxa3) 41... f5 {[%emt 0:00:16]} 42. Kc2 {[%emt 0:00:40]} Kf7 {[%emt 0:00:12]} 43. Kb2 {[%emt 0:00:07]} Ke6 {[%emt 0:00:08]} 44. Kxa2 {[%emt 0:00:14]} h5 {[%emt 0:00:23]} 45. h4 {[%emt 0:01:05]} Kd5 {[%emt 0:00:26]} 46. Kb2 {[%emt 0:00:24]} f4 {[%emt 0:00:26]} 47. Kc3 {[%emt 0:00:36]} e4 {[%emt 0:00:13]} 48. Bc1 {[%emt 0:00:19] Weighted Error Value: White=0.03 (flawless) /Black=0.43} 1-0

[Event "67th Mexican-ch Open 2022"]
[Site "Chihuahua"]
[Date "2022.04.16"]
[Round "7.25"]
[White "Guillen Cristobal, Sandra N"]
[Black "Ramirez Toledo, Ayleen Maribel"]
[Result "1-0"]
[ECO "B32"]
[WhiteElo "1933"]
[BlackElo "1810"]
[Annotator "TA"]
[PlyCount "133"]
[EventDate "2022.04.12"]
[EventType "swiss"]
[EventCountry "MEX"]
[SourceTitle "playchess.com"]
[Source "ChessBase"]
[SourceQuality "1"]
[TimeControl "5400+30"]

{[%evp 12,133,35,8,9,14,0,14,8,4,8,0,16,0,17,11,17,0,0,12,27,41,52,57,91,54,55,53,103,92,94,102,224,183,227,229,217,218,236,236,379,372,489,487,482,462,432,237,420,269,265,270,294,210,202,193,293,291,278,253,275,137,264,190,188,188,187,175,304,300,343,253,265,281,325,305,502,473,515,495,564,470,548,435,515,543,390,550,510,518,518,484,442,399,663,573,535,271,517,476,779,744,948,760,29969,29970,29970,29971,29971,29972,29972,29973,29971,29973,29969,29968,29982,29983,29983,29984,29985,29986,29992,29993]} 1. e4 {[%emt 0:00:02]} c5 {[%emt 0:00:05]} 2. Nf3 {[%emt 0:00:03][%cal Bg1f3,Bf3d4,Bd4b5][%mdl 32]} Nc6 {[%emt 0:00:04]} 3. d4 {[%emt 0:00:16]} cxd4 {[%emt 0:00:05]} 4. Nxd4 {[%emt 0:00:10]} e5 {[%emt 0:00:08]} 5. Nb5 {[%emt 0:00:10]} d6 {[%emt 0:00:07]} 6. c4 {[%emt 0:00:50]} Be7 {[%emt 0:00:13]} 7. Be2 {[%emt 0:00:17]} f5 {[%emt 0:04:53] is cutting edge theory. B32: Sicilian: Löwenthal and Kalashnikov Variations.} 8. N1c3 {[%emt 0:01:45]} a6 {[%emt 0:00:21]} 9. Na3 {[%emt 0:00:20]} Nf6 {[%emt 0:00:58] The position is equal.} 10. exf5 {[%emt 0:00:41]} Bxf5 {[%emt 0:00:27][%cal Od6d5]} 11. Be3 {[%emt 0:01:26]} O-O {[%emt 0:03:15]} 12. O-O {[%emt 0:00:39]} Qd7 {[%emt 0:03:18]} 13. Nd5 {[%emt 0:02:59]} Nxd5 {[%emt 0:02:37] [#]} 14. Qxd5+ $146 {[%emt 0:00:10]} ({Predecessor:} 14. cxd5 Nd8 15. Nc4 Qe8 16. Nb6 Rb8 17. Rc1 Nf7 18. Bg4 g6 19. Bxf5 gxf5 20. Qh5 {0-1 (37) Aldokhin,I (2413)-Arakhamia Grant,K (2362) Chess.com INT 2021}) 14... Be6 {[%emt 0:02:36]} 15. Qd2 {[%emt 0:00:12]} Rac8 {[%emt 0:15:58]} 16. Rad1 {[%emt 0:03:24]} Nd8 {[%emt 0:03:39]} 17. b3 {[%emt 0:02:33]} Nf7 {[%emt 0:18:14]} 18. Nb1 {[%emt 0:01:23]} b5 {[%emt 0:01:15]} 19. cxb5 {[%emt 0:00:09]} axb5 {[%emt 0:06:22] [#]} (19... d5 $1 $14) 20. Nc3 $1 $16 {[%emt 0:03:26]} Rb8 {[%emt 0:15:25]} 21. Nd5 {[%emt 0:03:20]} Rfd8 {[%emt 0:01:58] This costs Black the game.} (21... Bd8 $16) 22. Rc1 {[%emt 0:02:04] Threatens to win with Rc7.} Bxd5 {[%emt 0:04:15]} 23. Qxd5 {[%emt 0:00:11]} Qb7 {[%emt 0:01:19]} 24. Bf3 {[%emt 0:00:28][%cal Be2f3,Bf3d5,Bd5c6][%mdl 32]} Qxd5 {[%emt 0:00:36]} 25. Bxd5 {[%emt 0:00:02]} Rdc8 {[%emt 0:00:49]} (25... b4 $142 26. Rc7 Kf8) 26. Ba7 $18 {[%emt 0:01:16] A strong pair of Bishops.} Rxc1 {[%emt 0:02:00]} 27. Rxc1 {[%emt 0:00:11]} Re8 {[%emt 0:04:02]} 28. Rc7 {[%emt 0:01:59]} Kf8 {[%emt 0:00:10]} 29. Bc6 {[%emt 0:00:36]} (29. a4 $142) 29... Bd8 $2 {[%emt 0:02:54]} (29... Rd8 30. Bd5 (30. Bxb5 d5 $18) 30... Nh6) 30. Bxe8 {[%emt 0:00:46]} Bxc7 {[%emt 0:00:08]} 31. Bxb5 {[%emt 0:00:04][%mdl 4096] Endgame aiming for b4. KBB-KBN} Ke7 {[%emt 0:01:12]} 32. Bc4 {[%emt 0:01:34] Bxf7 is the strong threat.} Nd8 {[%emt 0:01:27]} 33. Bd5 {[%emt 0:00:39]} Ne6 {[%emt 0:00:24]} (33... Kd7 $142 34. Be3 Nc6) 34. b4 {[%emt 0:02:13]} Nf4 {[%emt 0:00:25]} 35. Bc6 {[%emt 0:00:18]} d5 {[%emt 0:03:12]} 36. g3 {[%emt 0:01:52]} (36. Kf1 $18 {and White stays clearly on top.}) 36... Kd6 {[%emt 0:00:22]} (36... Ne2+ $16 {might work better.} 37. Kg2 Kd6) 37. Be8 {[%emt 0:00:28]} ({Less strong is} 37. gxf4 Kxc6 38. fxe5 Bxe5 $16) 37... Nd3 {[%emt 0:02:38] [#] Prevents Bc5+.} 38. a3 {[%emt 0:00:20]} d4 {[%emt 0:00:44]} 39. Kf1 {[%emt 0:02:14] Hoping for Ke2.} Nb2 {[%emt 0:00:36]} (39... Kd5 $142 40. Bf7+ Kc6) 40. Ke2 {[%emt 0:02:48]} Bd8 {[%emt 0:00:39]} 41. Bb5 {[%emt 0:00:51] Against d3+. And now a4 would win.} Kd5 {[%emt 0:00:24]} 42. f3 {[%emt 0:02:56]} g5 {[%emt 0:00:42][%cal Og5g4]} 43. h3 {[%emt 0:02:45][%cal Bh2h3,Bh3g4][%mdl 32]} h5 $2 {[%emt 0:00:12]} (43... Be7 44. Bb8 h5) 44. g4 {[%emt 0:00:17]} hxg4 {[%emt 0:00:08]} 45. hxg4 {[%emt 0:00:20]} Be7 {[%emt 0:01:08]} 46. Bd3 {[%emt 0:04:16]} Na4 {[%emt 0:00:25]} 47. Kd2 {[%emt 0:02:34]} Nc3 {[%emt 0:00:30]} 48. Bb8 {[%emt 0:04:22]} Bf8 {[%emt 0:00:27]} 49. Bc7 {[%emt 0:02:07]} (49. Bc2 $142) 49... Be7 {[%emt 0:00:09]} 50. Ba5 {[%emt 0:02:05]} Kc6 {[%emt 0:00:59]} 51. Kc2 {[%emt 0:00:55]} Kd5 {[%emt 0:00:18]} 52. Bh7 {[%emt 0:03:22]} e4 $2 {[%emt 0:00:42]} (52... Bd6 53. Bg8+ Kc6) 53. fxe4+ {[%emt 0:02:09]} Nxe4 {[%emt 0:00:01]} 54. Bg8+ {[%emt 0:01:36]} Ke5 $2 {[%emt 0:00:23]} (54... Kd6 {was worth a try.} 55. Bh7 Kd5 56. Bxe4+ Kxe4) 55. Bc7+ {[%emt 0:00:20]} Nd6 {[%emt 0:01:11]} (55... Bd6 $142) 56. Kd3 {[%emt 0:01:21]} Kf4 {[%emt 0:00:18]} 57. Be6 {[%emt 0:00:15]} Kf3 {[%emt 0:00:13]} 58. Bxd6 {[%emt 0:00:13] White mates.} Bxd6 {[%emt 0:00:09]} 59. Kxd4 {[%emt 0:00:18] KB-KB} Kf4 {[%emt 0:00:45]} 60. Kc4 {[%emt 0:00:16]} Ke5 {[%emt 0:00:09]} 61. Bf5 {[%emt 0:00:44]} Be7 {[%emt 0:00:15]} 62. a4 {[%emt 0:00:24][%cal Ba3a4,Ba4a5][%mdl 32]} Kd6 {[%emt 0:00:27]} 63. a5 {[%emt 0:00:43]} Bf6 {[%emt 0:01:39]} 64. b5 {[%emt 0:00:35][%cal Bb4b5,Bb5b6][%mdl 32]} Bd8 {[%emt 0:00:22]} 65. Kb4 {[%emt 0:00:34]} Kc7 {[%emt 0:00:17]} 66. b6+ {[%emt 0:00:12]} Kb7 {[%emt 0:00:48]} 67. Kb5 {[%emt 0:00:09] Weighted Error Value: White=0.26 (precise) /Black=0.59} 1-0

[Event "67th Mexican-ch Open 2022"]
[Site "Chihuahua"]
[Date "2022.04.16"]
[Round "7.27"]
[White "Ruiz Villalba, Andrea"]
[Black "Corrales Jimenez, Zenia"]
[Result "1/2-1/2"]
[ECO "B22"]
[WhiteElo "1831"]
[BlackElo "2151"]
[Annotator "TA"]
[PlyCount "87"]
[EventDate "2022.04.12"]
[EventType "swiss"]
[EventCountry "MEX"]
[SourceTitle "playchess.com"]
[Source "ChessBase"]
[SourceQuality "1"]
[TimeControl "5400+30"]

{[%evp 10,87,48,61,49,16,21,0,4,0,0,0,-10,0,-8,-20,-25,-18,-20,-51,-47,-43,-47,-47,-29,-30,-22,-25,-22,-30,-23,-31,-21,-22,-29,-29,-8,-17,-14,-9,-9,-10,-14,-13,-13,-13,-12,-13,-14,-97,-88,-86,-85,-89,-78,-78,-80,-77,-72,-72,-72,-72,0,0,0,0,0,0,0,0,0,0,0,0,0,0,0,0,0,0]} 1. e4 {[%emt 0:06:20]} c5 {[%emt 0:00:10]} 2. c3 {[%emt 0:00:38]} d5 {[%emt 0:10:06]} 3. exd5 {[%emt 0:00:28]} Qxd5 {[%emt 0:00:05]} 4. d4 {[%emt 0:00:21]} Nf6 {[%emt 0:00:36]} 5. Nf3 {[%emt 0:00:28]} g6 {[%emt 0:01:55]} 6. Na3 {[%emt 0:04:14]} cxd4 {[%emt 0:03:55] B22: Sicilian: 2 c3.} 7. Nb5 {[%emt 0:02:54] And now Nc7+ would win.} (7. Bc4 $5 {[%cal Rc4d5]} Qe4+ 8. Be3 $1 $14) 7... Na6 {[%emt 0:00:23] Prevents Nc7+.} 8. cxd4 {[%emt 0:10:53] With the idea Qa4.} Bg7 {[%emt 0:04:02]} 9. Be2 {[%emt 0:03:51]} O-O {[%emt 0:01:22]} 10. O-O {[%emt 0:00:06]} Bg4 {[%emt 0:16:49]} 11. Nc3 {[%emt 0:04:20]} Qd6 {[%emt 0:01:18] [#]} 12. Qb3 $146 {[%emt 0:09:55]} ({Predecessor:} 12. h3 Bxf3 13. Bxf3 Rab8 14. Re1 Nc7 15. Bg5 Ne6 16. Be3 Rbd8 17. d5 Nc7 18. Qb3 Nfxd5 {½-½ (66) Chan,W (2348)-Ranola,Y (2399) Singapore 2010}) 12... Nc7 {[%emt 0:08:24]} 13. Be3 {[%emt 0:08:19]} Be6 {[%emt 0:04:33]} 14. Qc2 {[%emt 0:05:29]} ({Wrong is} 14. Qxb7 $2 Rfb8 15. Ne4 Rxb7 $19) 14... Rac8 {[%emt 0:07:45]} 15. Qd2 {[%emt 0:02:58]} Ncd5 {[%emt 0:00:33]} 16. Rac1 {[%emt 0:11:52]} Nxc3 {[%emt 0:10:04]} 17. bxc3 {[%emt 0:00:17]} Ne4 {[%emt 0:00:05]} 18. Qb2 {[%emt 0:03:15]} Bc4 {[%emt 0:00:17]} 19. Bxc4 {[%emt 0:05:29]} Rxc4 {[%emt 0:00:02]} 20. Qxb7 {[%emt 0:00:16]} Nxc3 {[%emt 0:00:06] Hoping for ...Ne2+.} 21. Rc2 {[%emt 0:01:09] Prevents Ne2+.} Rfc8 {[%emt 0:07:26]} 22. Kh1 {[%emt 0:07:59]} Qb6 {[%emt 0:09:38]} 23. Qxb6 {[%emt 0:03:21]} axb6 {[%emt 0:00:01]} 24. Rfc1 {[%emt 0:00:12] aiming for Bd2.} b5 {[%emt 0:00:24][%cal Oc3a2] White must now prevent ...Nxa2!} 25. Nd2 {[%emt 0:00:42] [#]} Nxa2 $1 {[%emt 0:06:40]} 26. Rxc4 {[%emt 0:00:59]} bxc4 {[%emt 0:00:04]} 27. Rxc4 {[%emt 0:00:10]} Rxc4 {[%emt 0:00:04]} 28. Nxc4 $11 {[%emt 0:00:08][%mdl 4096] Endgame KBN-KBN} Nc3 {[%emt 0:00:30]} 29. Kg1 {[%emt 0:02:32] [#]} (29. g4 $11) 29... Bxd4 $1 {[%emt 0:00:10]} 30. Bxd4 {[%emt 0:02:34]} Ne2+ {[%emt 0:00:01]} 31. Kf1 {[%emt 0:00:02]} Nxd4 $17 {[%emt 0:00:05] KN-KN} 32. f4 {[%emt 0:00:15]} h5 {[%emt 0:00:30]} 33. Kf2 {[%emt 0:00:32]} Kg7 {[%emt 0:00:05]} 34. h3 {[%emt 0:01:19]} Kf6 {[%emt 0:02:38]} 35. g4 {[%emt 0:00:09]} h4 {[%emt 0:00:14]} (35... g5 $17 36. Ke3 {[#]} hxg4 $1 37. hxg4 Nc6) 36. Ke3 $11 {[%emt 0:02:59] The position is equal.} Nc2+ {[%emt 0:00:58]} 37. Ke4 {[%emt 0:00:26]} g5 {[%emt 0:01:40]} 38. fxg5+ {[%emt 0:00:23]} Kxg5 {[%emt 0:00:02]} 39. Ne5 {[%emt 0:00:03]} Kf6 {[%emt 0:05:07]} 40. Nf3 {[%emt 0:00:13]} e6 {[%emt 0:00:30]} 41. Nxh4 {[%emt 0:00:08]} Ne1 {[%emt 0:00:08] ( -> ...Kg5)} 42. Kf4 {[%emt 0:01:18]} Nd3+ {[%emt 0:00:35]} 43. Ke3 {[%emt 0:00:31]} Ne1 {[%emt 0:00:42] Strongly threatening ...Kg5.} 44. Kf4 {[%emt 0:00:09] Weighted Error Value: White=0.08 (flawless) /Black=0.04 (flawless)} 1/2-1/2

[Event "67th Mexican-ch Open 2022"]
[Site "Chihuahua"]
[Date "2022.04.17"]
[Round "8.1"]
[White "Cori, Jorge"]
[Black "Mareco, Sandro"]
[Result "0-1"]
[ECO "D38"]
[WhiteElo "2650"]
[BlackElo "2643"]
[Annotator "TA"]
[PlyCount "94"]
[EventDate "2022.04.12"]
[EventType "swiss"]
[EventCountry "MEX"]
[SourceTitle "playchess.com"]
[Source "ChessBase"]
[SourceQuality "1"]
[TimeControl "5400+30"]

{[%evp 18,94,0,0,0,0,0,0,0,0,0,0,0,-28,-22,-33,-31,-47,0,0,0,0,0,0,0,0,0,0,0,0,0,0,0,-4,58,68,70,62,68,7,79,20,103,0,0,0,0,-18,-35,-16,0,-20,-19,-16,-15,-77,-37,-30,1229,0,0,0,0,-1206,-1140,-12799,-11627,-29962,-29963,-9174,-6558,-29975,-29976,-29976,-29977,-29977,-29964,-29964,-11010]} 1. d4 {[%emt 0:00:03]} Nf6 {[%emt 0:00:04]} 2. c4 {[%emt 0:00:07]} e6 {[%emt 0:00:04]} 3. Nf3 {[%emt 0:00:03]} d5 {[%emt 0:00:04]} 4. Nc3 {[%emt 0:00:10]} Bb4 {[%emt 0:00:23]} 5. Bg5 {[%emt 0:00:41]} h6 {[%emt 0:00:11]} 6. Bxf6 {[%emt 0:01:25]} Qxf6 {[%emt 0:00:06]} 7. cxd5 {[%emt 0:03:27]} exd5 {[%emt 0:00:05]} 8. Rc1 {[%emt 0:00:02]} O-O {[%emt 0:03:12]} 9. a3 {[%emt 0:00:02]} Bxc3+ {[%emt 0:00:21]} 10. Rxc3 {[%emt 0:00:05]} c6 {[%emt 0:00:47] [#] D38: Queen's Gambit Declined: Ragozin Defence (4 Nf3 Bb4).} 11. Rg1 $146 {[%emt 0:08:30]} ({Predecessor:} 11. e3 Bg4 12. Qb3 Nd7 13. Qxb7 Rab8 14. Qxc6 Rxb2 15. Bd3 Qxc6 16. Rxc6 Rfb8 17. O-O R2b3 18. Ba6 Rxa3 19. Bc8 {½-½ (44) Bu,X (2644)-Jakovenko,D (2691) Wijk aan Zee 2007}) 11... Nd7 {[%emt 0:39:32]} 12. g4 {[%emt 0:00:44][%cal Bg2g4,Bg4g5][%mdl 32]} Qd6 {[%emt 0:12:05] The position is equal.} 13. g5 {[%emt 0:08:18] Inhibits Nf6.} Re8 {[%emt 0:08:50]} 14. Qc2 {[%emt 0:34:27]} Qf4 {[%emt 0:12:13]} 15. Rg3 {[%emt 0:13:26]} Nf8 $1 {[%emt 0:05:19]} 16. gxh6 {[%emt 0:07:38]} Qxh6 {[%emt 0:00:06]} 17. e3 {[%emt 0:01:40]} Re4 {[%emt 0:05:06]} (17... Nh7 $15 {is more appropriate.}) 18. Qb3 {[%emt 0:02:16]} Re7 {[%emt 0:02:13]} 19. Bd3 {[%emt 0:00:08] Prevents Bf5.} Be6 {[%emt 0:00:10]} 20. Kd2 {[%emt 0:00:55]} Qf6 {[%emt 0:00:39]} 21. Qd1 {[%emt 0:10:46]} Bf5 {[%emt 0:00:57]} 22. Bxf5 {[%emt 0:00:12]} Qxf5 {[%emt 0:00:04]} 23. Qg1 {[%emt 0:00:03]} g6 {[%emt 0:06:27]} 24. h4 {[%emt 0:04:09]} Nh7 {[%emt 0:00:10]} 25. Ne5 {[%emt 0:00:38]} Nf6 (25... Kg7 $11) 26. f3 $14 {[%emt 0:02:56]} Nh7 {Against Rg5} 27. Kc1 {[%emt 0:00:30]} Rc8 {[%cal Oc6c5]} 28. b4 {[%emt 0:00:30]} (28. Rg4 $14) 28... Rce8 (28... Ra8 $11) 29. Kb2 {[%emt 0:00:30]} (29. f4 $1 $16) 29... a5 (29... Rxe5 $11 {remains equal.} 30. dxe5 Qxe5) 30. f4 {[%emt 0:00:30]} (30. bxa5 $16 {Black must now prevent f4.} Qh5 31. a6) 30... axb4 $11 31. axb4 {[%emt 0:00:30][%cal Oh4h5]} Ra8 32. h5 {[%emt 0:00:30]} Qxh5 {aiming for ...Qe2+.} 33. Rc2 {[%emt 0:00:30][%cal Oe5f7] Against Qe2} b6 {Strongly threatening ...Rea7.} 34. Nxc6 {[%emt 0:00:30]} (34. Rh2 Qf5 35. Nxf7 (35. Rgh3 Rea7 $17) 35... Rxf7 $17) (34. Nxg6 $5 Rea7 35. Ne5+ Kh8 36. Qh2 (36. Nxc6 $2 Ra2+ 37. Kb1 Ra1+ 38. Kb2 R1a2+ 39. Kb1 Ra1+ 40. Kb2 R8a2+ 41. Kb3 Rxg1 $19) 36... Ra2+ 37. Kc1 Ra1+ 38. Kb2 R8a2+ 39. Kc3 Ra3+ 40. Kb2 R1a2+ 41. Kc1 Ra1+ 42. Kb2 $11) 34... Rc7 $36 {[%mdl 2048] Black has the initiative.} 35. b5 {[%emt 0:00:30]} Qf5 36. Qd1 {[%emt 0:00:30]} (36. Rc3 $11) 36... Kg7 (36... Nf6 $5 {[%cal Rf6e4]} 37. Rh2 Kg7 $11) 37. Rh2 {[%emt 0:00:30]} Qe6 $2 {[%mdl 8192]} (37... Nf6 $11 38. Rgh3 Qe6) 38. Qd3 $2 {[%emt 0:00:30]} ({White must play} 38. Qh5 $1 $18 {[%cal Rh5h7]} Kf6 39. Qh4+ Kf5 40. Qxh7 Rxc6 41. Qh3+ Kf6 42. Qh4+ Kg7 43. Qh6+ Kf6 44. Qg5+ Kg7 45. f5 Rc2+ 46. Kxc2 Qc8+ 47. Kb2 Ra2+ 48. Kxa2 Qc4+ 49. Kb2 Qb4+ 50. Kc1 Qc3+ 51. Kd1 Qd3+ 52. Ke1) 38... Rxc6 39. bxc6 {[%emt 0:00:30]} Qxc6 {Dancing on a razor blade.} 40. f5 $2 {[%emt 0:00:30][%mdl 8192]} ({Wrong is} 40. Rgh3 $2 Nf6 41. e4 dxe4 $19) (40. Rg1 $11) 40... Qa4 $19 41. Rxh7+ {[%emt 0:00:30]} Kxh7 42. fxg6+ {[%emt 0:00:30][%mdl 4096] Endgame [#] KQR-KQR} Kh6 $1 43. Rh3+ {[%emt 0:00:30] [#]} Kg5 $1 {( -> ...Qa1+)} ({And not} 43... Kg7 44. Rh7+ Kf8 45. Rh8+ (45. gxf7 {leads to mate.} Qa1+ 46. Kb3 Ra3+ 47. Kc2 Ra2+ 48. Kb3 Qb2#) 45... Kg7 46. Rxa8 Qxa8 47. gxf7 $11) 44. Rg3+ {[%emt 0:00:30]} Kh4 {Black mates.} 45. Rh3+ {[%emt 0:00:30]} Kxh3 46. Qf5+ {[%emt 0:00:30]} Kh4 47. Qf4+ {[%emt 0:00:30]} Kh5 {Weighted Error Value: White=0.82/Black=0.15 (very precise)} 0-1